[Event "GER-chT States Women 2022"]
[Site "Braunfels"]
[Date "2022.06.18"]
[Round "4.24"]
[White "Engel, Esther"]
[Black "Zoellner, Bente"]
[Result "0-1"]
[ECO "A57"]
[WhiteElo "1751"]
[BlackElo "1589"]
[Annotator "NA RC"]
[PlyCount "62"]
[EventDate "2022.06.15"]
[EventType "swiss"]
[EventCountry "GER"]
[SourceTitle "playchess.com"]
[Source "ChessBase"]
[SourceQuality "1"]
[TimeControl "40/5400+30:1800+30"]

1. d4 Nf6 2. c4 {[%emt 0:00:45]} c5 {[%emt 0:00:36]} 3. d5 {[%emt 0:00:12]} b5 {[%emt 0:00:07]} 4. cxb5 {[%emt 0:00:20]} a6 {[%emt 0:00:06]} 5. b6 {[%emt 0:00:07]} a5 {[%emt 0:02:55]} 6. a4 {[%emt 0:00:08]} Qxb6 {[%emt 0:01:27]} 7. Nc3 {[%emt 0:01:02]} d6 {[%emt 0:01:56]} 8. e4 {[%emt 0:00:31]} Na6 {[%emt 0:00:42]} 9. Bc4 {[%emt 0:03:08]} Nc7 {[%emt 0:01:15]} 10. f4 {[%emt 0:02:55]} Qb4 {[%emt 0:02:38]} 11. Qe2 {[%emt 0:01:24]} Ba6 {[%emt 0:01:17]} 12. Bxa6 {[%emt 0:07:52]} Rxa6 {[%emt 0:00:49]} 13. Nf3 {[%emt 0:00:14]} g6 {[%emt 0:02:17]} 14. O-O {[%emt 0:07:17]} Bg7 {[%emt 0:02:45]} 15. Rd1 {[%emt 0:08:42]} O-O {[%emt 0:00:41]} 16. Kh1 {[%emt 0:12:40]} Qb7 {[%emt 0:03:01]} 17. Ra3 {[%emt 0:01:46]} Rb6 {[%emt 0:01:17]} 18. Nd2 {[%emt 0:02:05]} Nd7 {[%emt 0:01:03]} 19. Nc4 {[%emt 0:00:22]} Ra6 {[%emt 0:02:45]} 20. Na2 {[%emt 0:04:37]} Nb6 {[%emt 0:02:24]} 21. Rb3 {[%emt 0:02:27]} Qa7 {[%emt 0:01:20]} 22. Nxb6 {[%emt 0:02:50]} Rxb6 {[%emt 0:00:06]} 23. Rxb6 {[%emt 0:01:31]} Qxb6 {[%emt 0:00:07]} 24. Qc4 {[%emt 0:02:13]} Bxb2 {[%emt 0:02:42]} 25. Bd2 {[%emt 0:02:25]} Bg7 {[%emt 0:02:47]} 26. h3 {[%emt 0:01:28]} Rb8 {[%emt 0:05:09]} 27. Nc1 {[%emt 0:01:33]} Na6 {[%emt 0:05:25]} 28. Na2 {[%emt 0:04:30]} Qb3 {[%emt 0:01:32]} 29. Qxb3 {[%emt 0:01:19]} Rxb3 {[%emt 0:00:07]} 30. Bxa5 {[%emt 0:00:10]} Ra3 {[%emt 0:00:16]} 31. Nc1 {[%emt 0:01:26]} Rxa4 {[%emt 0:00:15]} 0-1

[Event "GER-chT States Women 2022"]
[Site "Braunfels"]
[Date "2022.06.18"]
[Round "4.25"]
[White "Koehler, Inken"]
[Black "Wagner, Margarethe"]
[Result "0-1"]
[ECO "B53"]
[WhiteElo "2002"]
[BlackElo "1902"]
[Annotator "NA RC"]
[PlyCount "84"]
[EventDate "2022.06.15"]
[EventType "swiss"]
[EventCountry "GER"]
[SourceTitle "playchess.com"]
[Source "ChessBase"]
[SourceQuality "1"]
[TimeControl "40/5400+30:1800+30"]

1. e4 {[%emt 0:00:02]} c5 {[%emt 0:00:12]} 2. Nf3 {[%emt 0:00:07]} d6 {[%emt 0:00:13]} 3. d4 {[%emt 0:00:10]} cxd4 {[%emt 0:00:09]} 4. Qxd4 {[%emt 0:00:05]} Nc6 {[%emt 0:02:00]} 5. Qe3 {[%emt 0:00:06]} Nf6 {[%emt 0:03:01]} 6. h3 {[%emt 0:02:13]} a6 {[%emt 0:02:50]} 7. Be2 {[%emt 0:00:54]} Qc7 {[%emt 0:03:57]} 8. a3 {[%emt 0:09:52]} g6 {[%emt 0:03:52]} 9. O-O {[%emt 0:00:20]} Bg7 {[%emt 0:00:36]} 10. Nc3 {[%emt 0:02:38]} O-O {[%emt 0:04:05]} 11. Rd1 {[%emt 0:01:55]} b6 {[%emt 0:13:39]} 12. Rb1 {[%emt 0:01:35]} Bb7 {[%emt 0:03:19]} 13. b4 {[%emt 0:06:26]} Ne5 {[%emt 0:11:52]} 14. Nxe5 {[%emt 0:03:42]} dxe5 {[%emt 0:00:08]} 15. Bb2 {[%emt 0:01:00]} b5 {[%emt 0:02:23]} 16. Rbc1 {[%emt 0:03:58]} e6 {[%emt 0:02:29]} 17. Bd3 {[%emt 0:07:05]} Nh5 {[%emt 0:03:23]} (17... Nd7 $11) 18. Nb1 {[%emt 0:09:48]} Nf4 {[%emt 0:03:16]} 19. Bf1 {[%emt 0:00:30]} Qc6 {[%emt 0:03:59]} 20. Nd2 {[%emt 0:01:50]} Rfd8 {[%emt 0:02:07]} 21. f3 {[%emt 0:19:04]} (21. c4 $16) 21... Rac8 {[%emt 0:07:22]} 22. c4 {[%emt 0:02:14]} Qe8 {[%emt 0:02:27]} (22... Qd6 $1 $14) 23. c5 {[%emt 0:04:51]} Qe7 {[%emt 0:03:12]} 24. Kh2 {[%emt 0:03:13]} Qf6 {[%emt 0:07:46]} 25. Nb3 {[%emt 0:06:13]} Rxd1 {[%emt 0:04:57]} 26. Rxd1 {[%emt 0:00:06]} Bh6 {[%emt 0:01:25]} 27. Qf2 {[%emt 0:02:44]} Nh5 {[%emt 0:01:00]} 28. g3 {[%emt 0:02:07]} Bxe4 $1 {[%emt 0:02:05]} 29. f4 $17 {[%emt 0:02:56]} (29. Nd2 $11 Bd5 30. Kg1) 29... Nxg3 {[%emt 0:04:30]} 30. Bxe5 {[%emt 0:00:20]} Nxf1+ {[%emt 0:00:06]} 31. Qxf1 {[%emt 0:01:22]} Qf5 {[%emt 0:00:30]} 32. Nd4 {[%emt 0:01:16]} Qh5 {[%emt 0:00:14]} 33. Ne2 {[%emt 0:01:32]} Qf3 {[%emt 0:01:14]} 34. Nc3 {[%emt 0:02:16]} Bxf4+ {[%emt 0:01:17]} 35. Bxf4 {[%emt 0:00:04]} Qxc3 {[%emt 0:00:05]} 36. Bh6 {[%emt 0:00:37]} Qe5+ {[%emt 0:00:46]} 37. Bf4 {[%emt 0:00:29]} Qb2+ {[%emt 0:00:19]} 38. Rd2 {[%emt 0:00:32]} Qxa3 {[%emt 0:00:34]} 39. Qd1 {[%emt 0:00:51]} Bd5 {[%emt 0:00:42]} 40. Bh6 {[%emt 0:02:06]} Qc3 {[%emt 0:00:35]} 41. Rd4 {[%emt 0:30:57]} Qb2+ {[%emt 0:06:09]} 42. Rd2 {[%emt 0:00:00]} Qe5+ {[%emt 0:00:41]} 0-1

[Event "GER-chT States Women 2022"]
[Site "Braunfels"]
[Date "2022.06.18"]
[Round "4.26"]
[White "Wagner, Victoria"]
[Black "Braeutigam, Irina"]
[Result "0-1"]
[ECO "B90"]
[WhiteElo "1806"]
[BlackElo "2013"]
[Annotator "NA RC"]
[PlyCount "102"]
[EventDate "2022.06.15"]
[EventType "swiss"]
[EventCountry "GER"]
[SourceTitle "playchess.com"]
[Source "ChessBase"]
[SourceQuality "1"]
[TimeControl "40/5400+30:1800+30"]

1. e4 {[%emt 0:00:04]} c5 {[%emt 0:00:15]} 2. Nf3 {[%emt 0:00:07]} d6 {[%emt 0:00:04]} 3. d4 {[%emt 0:00:05]} cxd4 {[%emt 0:00:06]} 4. Nxd4 {[%emt 0:00:06]} Nf6 {[%emt 0:00:05]} 5. Nc3 {[%emt 0:00:05]} a6 {[%emt 0:00:04]} 6. Bd3 {[%emt 0:00:36]} g6 {[%emt 0:00:23]} 7. O-O {[%emt 0:01:49]} Bg7 {[%emt 0:00:35]} 8. Be2 {[%emt 0:07:35]} O-O {[%emt 0:01:20]} 9. Kh1 {[%emt 0:04:07]} Nc6 {[%emt 0:08:49]} 10. Be3 {[%emt 0:10:40]} Nxd4 {[%emt 0:06:57]} 11. Bxd4 {[%emt 0:00:08]} Be6 {[%emt 0:00:12]} 12. f3 {[%emt 0:06:08]} Rc8 {[%emt 0:07:13]} 13. Nd5 {[%emt 0:09:21]} Bxd5 {[%emt 0:09:52]} 14. exd5 {[%emt 0:00:18]} Qa5 {[%emt 0:00:32]} 15. c4 {[%emt 0:02:23]} b5 {[%emt 0:01:17]} 16. Bc3 {[%emt 0:04:44]} Qb6 {[%emt 0:03:24]} 17. Bd4 {[%emt 0:02:23]} Qb7 {[%emt 0:03:49]} 18. b3 {[%emt 0:00:47]} Nd7 {[%emt 0:04:08]} 19. Bxg7 {[%emt 0:02:34]} Kxg7 {[%emt 0:00:04]} 20. cxb5 {[%emt 0:01:41]} axb5 {[%emt 0:00:17]} 21. Qd4+ {[%emt 0:01:40]} Kg8 {[%emt 0:01:17]} 22. b4 {[%emt 0:02:06]} Nf6 {[%emt 0:02:58]} 23. Rfd1 {[%emt 0:01:35]} Ra8 {[%emt 0:10:13]} 24. Qd3 {[%emt 0:04:10]} Rfb8 {[%emt 0:02:33]} 25. f4 {[%emt 0:01:14]} Qd7 {[%emt 0:05:54]} 26. Rdc1 {[%emt 0:06:40]} Qb7 {[%emt 0:06:19]} (26... Ra4 $15 {might be stronger.}) 27. Rd1 {[%emt 0:10:26]} Ra7 {[%emt 0:04:57]} 28. f5 {[%emt 0:05:08]} Qd7 {[%emt 0:02:35]} 29. fxg6 {[%emt 0:00:57]} hxg6 {[%emt 0:00:28]} 30. Rdc1 {[%emt 0:07:25]} (30. a3 $15) 30... Rc7 {[%emt 0:04:02]} 31. Rxc7 {[%emt 0:02:19]} Qxc7 {[%emt 0:00:02]} 32. Qd2 {[%emt 0:01:09]} Qa7 {[%emt 0:04:14]} ({Black should try} 32... Ne4 $17 33. Qe3 Qc3 34. Qxc3 Nxc3) 33. Qd3 {[%emt 0:02:08]} Qa8 {[%emt 0:01:43]} 34. Bf3 {[%emt 0:00:42]} Qa4 {[%emt 0:01:29]} 35. a3 {[%emt 0:01:10]} Rc8 {[%emt 0:01:48]} 36. Bd1 {[%emt 0:00:27]} Qa6 {[%emt 0:01:21]} 37. Be2 {[%emt 0:00:44]} Rb8 {[%emt 0:00:33]} 38. Rc1 {[%emt 0:01:00]} Qa8 {[%emt 0:00:56]} 39. Rc6 {[%emt 0:01:14]} e6 {[%emt 0:03:15]} 40. Rxd6 {[%emt 0:01:17]} Nxd5 {[%emt 0:00:30]} 41. Bf3 {[%emt 0:11:59]} Rc8 {[%emt 0:05:17]} 42. g3 $1 {[%emt 0:00:42]} Qb8 {[%emt 0:06:43]} 43. Rd7 $2 {[%emt 0:12:36]} (43. Rxe6 $1 $11 {and White stays safe.} fxe6 44. Qxg6+ Kf8 45. Qxe6 Rc1+ 46. Kg2 Nf4+ 47. gxf4 Qxf4 48. Qe4 Qg5+ 49. Bg4) 43... Rc3 {[%emt 0:02:04]} 44. Qe4 {[%emt 0:04:24]} Qc8 {[%emt 0:10:58]} 45. Ra7 {[%emt 0:01:16]} Re3 {[%emt 0:07:22]} 46. Qg4 $2 {[%emt 0:01:07]} (46. Qxe3 $15 Nxe3 47. Ra8 Qxa8 48. Bxa8) 46... Qc2 {[%emt 0:01:04]} 47. Ra8+ {[%emt 0:00:36]} Kg7 {[%emt 0:00:04]} 48. Qd4+ {[%emt 0:00:15]} e5 {[%emt 0:00:12]} 49. Qa1 {[%emt 0:01:39]} Rxf3 {[%emt 0:01:00]} 50. Qxe5+ {[%emt 0:00:10]} Nf6 {[%emt 0:00:06]} 51. Qe1 {[%emt 0:00:42]} Rf2 {[%emt 0:00:25]} 0-1

[Event "GER-chT States Women 2022"]
[Site "Braunfels"]
[Date "2022.06.18"]
[Round "4.27"]
[White "Gressmann, Hanna"]
[Black "Albayrak, Nese Pinar"]
[Result "1/2-1/2"]
[ECO "C47"]
[WhiteElo "1892"]
[BlackElo "1683"]
[Annotator "NA RC"]
[PlyCount "88"]
[EventDate "2022.06.15"]
[EventType "swiss"]
[EventCountry "GER"]
[SourceTitle "playchess.com"]
[Source "ChessBase"]
[SourceQuality "1"]
[TimeControl "40/5400+30:1800+30"]

1. e4 {[%emt 0:00:03]} e5 {[%emt 0:00:06]} 2. Nf3 {[%emt 0:00:05]} Nc6 {[%emt 0:00:06]} 3. Nc3 {[%emt 0:00:05]} Nf6 {[%emt 0:00:07]} 4. d4 {[%emt 0:00:05]} exd4 {[%emt 0:05:19]} 5. Nxd4 {[%emt 0:00:30]} Bb4 {[%emt 0:00:08]} 6. Nxc6 {[%emt 0:00:08]} bxc6 {[%emt 0:00:17]} 7. Bd3 {[%emt 0:00:13]} O-O {[%emt 0:01:04]} 8. O-O {[%emt 0:00:25]} d5 {[%emt 0:03:54]} 9. exd5 {[%emt 0:01:10]} cxd5 {[%emt 0:01:00]} 10. h3 {[%emt 0:01:16]} h6 {[%emt 0:05:30]} 11. Qf3 {[%emt 0:02:49]} Bb7 {[%emt 0:05:25]} 12. Bf4 {[%emt 0:13:19]} a6 {[%emt 0:11:50]} 13. Rfd1 {[%emt 0:18:21]} Qe7 {[%emt 0:10:00]} 14. Re1 {[%emt 0:10:09]} Qd8 {[%emt 0:10:35]} (14... Ne4 $1 $14) 15. Rad1 {[%emt 0:14:06]} Rb8 {[%emt 0:04:36]} 16. Qg3 {[%emt 0:02:56]} Nh5 {[%emt 0:07:11]} 17. Qg4 {[%emt 0:02:02]} (17. Bxc7 $11 Nxg3 18. Bxd8 Rfxd8 19. fxg3) 17... Nxf4 {[%emt 0:00:58]} 18. Qxf4 {[%emt 0:00:06]} c5 {[%emt 0:08:31]} 19. a3 {[%emt 0:03:15]} Ba5 {[%emt 0:00:16]} 20. b4 {[%emt 0:02:51]} ({Don't play} 20. Qf5 g6 21. Qf4 Bc7 22. Qxh6 Qf6 $17) (20. Be4 $5 {[%cal Re4d5]}) 20... Bc7 {[%emt 0:01:40]} 21. Qg4 {[%emt 0:01:16]} Qd6 {[%emt 0:00:36]} 22. g3 $1 {[%emt 0:00:21]} cxb4 {[%emt 0:02:00]} 23. axb4 {[%emt 0:01:26]} Qf6 {[%emt 0:08:47]} 24. Ne2 {[%emt 0:04:05]} (24. Qf5 $11 {remains equal.} Qxf5 25. Bxf5) 24... Bc8 {[%emt 0:02:24]} 25. Qh5 {[%emt 0:02:05]} (25. Qd4 $17) 25... Rxb4 {[%emt 0:01:05]} 26. Rb1 {[%emt 0:01:58] [#]} Bb6 $1 {[%emt 0:02:58]} 27. Nf4 {[%emt 0:02:43]} Rxb1 {[%emt 0:00:59]} 28. Rxb1 {[%emt 0:00:06]} g5 {[%emt 0:01:20]} 29. Rxb6 {[%emt 0:00:21]} Qxb6 {[%emt 0:00:30]} 30. Nxd5 {[%emt 0:00:33]} Qe6 {[%emt 0:01:19]} 31. Qf3 {[%emt 0:01:11]} f5 {[%emt 0:03:37]} 32. Ne3 {[%emt 0:02:31]} (32. Bc4 $17 {is a better defense.} Qe1+ 33. Bf1) 32... Kg7 $19 {[%emt 0:01:09]} 33. Qa8 {[%emt 0:02:53]} Bd7 {[%emt 0:00:50]} 34. Qa7 {[%emt 0:00:22]} Kg6 {[%emt 0:00:44]} 35. Qc5 {[%emt 0:02:26]} Rf6 {[%emt 0:00:32]} 36. g4 {[%emt 0:02:38]} Qc6 {[%emt 0:00:17]} 37. Qe7 {[%emt 0:01:56]} Be6 {[%emt 0:00:46]} 38. gxf5+ {[%emt 0:01:18]} Bxf5 {[%emt 0:00:22]} 39. Nxf5 {[%emt 0:04:29]} Rxf5 {[%emt 0:00:20]} 40. Bxf5+ {[%emt 0:00:35]} Kxf5 {[%emt 0:00:02]} 41. Qf7+ {[%emt 0:03:51]} Ke5 {[%emt 0:07:13]} 42. Qe7+ {[%emt 0:01:47]} Kd5 {[%emt 0:03:10]} 43. Qe2 {[%emt 0:01:21]} Qe6 {[%emt 0:03:06]} 44. Qf3+ {[%emt 0:02:47]} Kc5 {[%emt 0:02:54]} 1/2-1/2

[Event "GER-chT States Women 2022"]
[Site "Braunfels"]
[Date "2022.06.18"]
[Round "4.28"]
[White "Pavlov, Liliane"]
[Black "Falke, Ornella"]
[Result "0-1"]
[ECO "E10"]
[WhiteElo "1742"]
[BlackElo "1844"]
[Annotator "NA RC"]
[PlyCount "62"]
[EventDate "2022.06.15"]
[EventType "swiss"]
[EventCountry "GER"]
[SourceTitle "playchess.com"]
[Source "ChessBase"]
[SourceQuality "1"]
[TimeControl "40/5400+30:1800+30"]

1. d4 {[%emt 0:00:03]} Nf6 {[%emt 0:00:26]} 2. c4 {[%emt 0:00:07]} e6 {[%emt 0:00:07]} 3. Nf3 {[%emt 0:00:07]} d5 {[%emt 0:00:07]} 4. g3 {[%emt 0:00:12]} Bb4+ {[%emt 0:00:21]} 5. Bd2 {[%emt 0:00:19]} Be7 {[%emt 0:00:05]} 6. Bg2 {[%emt 0:00:22]} O-O {[%emt 0:00:08]} 7. Nc3 {[%emt 0:01:06]} c6 {[%emt 0:00:39]} 8. O-O {[%emt 0:00:21]} Nbd7 {[%emt 0:02:24]} 9. Rc1 {[%emt 0:01:09]} dxc4 {[%emt 0:11:44]} 10. e4 {[%emt 0:03:14]} b5 {[%emt 0:02:19]} 11. Re1 {[%emt 0:01:53]} Bb7 {[%emt 0:01:03]} 12. a4 {[%emt 0:01:12]} a6 {[%emt 0:00:21]} 13. b3 {[%emt 0:03:25]} b4 {[%emt 0:02:27]} 14. Na2 {[%emt 0:05:10]} c3 {[%emt 0:00:19]} 15. Bg5 {[%emt 0:00:42]} h6 {[%emt 0:00:56]} 16. Bf4 {[%emt 0:00:57]} a5 {[%emt 0:00:29]} 17. Ne5 {[%emt 0:00:53]} Nxe5 {[%emt 0:04:28]} 18. Bxe5 {[%emt 0:00:56]} Nd7 {[%emt 0:01:30]} 19. Bf4 {[%emt 0:00:21]} Re8 {[%emt 0:05:34]} 20. Rc2 {[%emt 0:05:55]} e5 {[%emt 0:09:32]} 21. dxe5 {[%emt 0:01:41]} Bc5 {[%emt 0:00:09]} 22. Be3 {[%emt 0:01:13]} Bxe3 {[%emt 0:00:15]} 23. Rxe3 {[%emt 0:00:12]} Nxe5 {[%emt 0:00:07]} 24. Qh5 {[%emt 0:01:27]} Qd4 {[%emt 0:03:47]} 25. Nc1 {[%emt 0:02:35]} c5 {[%emt 0:01:12]} 26. Re1 {[%emt 0:01:06]} Rad8 {[%emt 0:02:19]} 27. Kh1 {[%emt 0:10:19]} c4 {[%emt 0:01:45]} 28. bxc4 {[%emt 0:01:34]} Qxc4 {[%emt 0:06:18]} 29. Bf1 {[%emt 0:00:50]} Qxe4+ {[%emt 0:09:56]} 30. Rxe4 {[%emt 0:01:02]} Bxe4+ {[%emt 0:00:04]} 31. Bg2 {[%emt 0:00:40]} Bxc2 {[%emt 0:00:18]} 0-1

[Event "GER-chT States Women 2022"]
[Site "Braunfels"]
[Date "2022.06.18"]
[Round "4.29"]
[White "Mundt, Alexandra"]
[Black "Prinzen, Siri Marleen"]
[Result "0-1"]
[ECO "D00"]
[WhiteElo "1782"]
[BlackElo "1744"]
[Annotator "NA RC"]
[PlyCount "96"]
[EventDate "2022.06.15"]
[EventType "swiss"]
[EventCountry "GER"]
[SourceTitle "playchess.com"]
[Source "ChessBase"]
[SourceQuality "1"]
[TimeControl "40/5400+30:1800+30"]

1. d4 {[%emt 0:00:02]} d5 {[%emt 0:00:06]} 2. Bf4 {[%emt 0:00:06]} c5 {[%emt 0:00:11]} 3. dxc5 {[%emt 0:00:27]} Nc6 {[%emt 0:00:34]} 4. Nf3 {[%emt 0:02:19]} f6 {[%emt 0:04:42]} 5. e3 {[%emt 0:14:46]} e5 {[%emt 0:02:00]} 6. Bg3 {[%emt 0:00:04]} Bxc5 {[%emt 0:01:19]} 7. c3 {[%emt 0:02:55]} Nge7 {[%emt 0:04:23]} 8. Nbd2 {[%emt 0:01:50]} Be6 {[%emt 0:05:36]} 9. Nb3 {[%emt 0:00:12]} Bb6 {[%emt 0:01:12]} 10. Be2 {[%emt 0:02:58]} Rc8 {[%emt 0:02:44]} 11. Qd2 {[%emt 0:05:10]} Nf5 {[%emt 0:03:21]} 12. Rd1 {[%emt 0:02:34]} Nd6 {[%emt 0:04:23]} 13. O-O {[%emt 0:04:38]} Ne4 {[%emt 0:02:56]} 14. Qe1 {[%emt 0:01:25]} Qe7 {[%emt 0:03:50]} 15. Nfd2 {[%emt 0:05:12]} Nxg3 {[%emt 0:07:30]} 16. hxg3 {[%emt 0:00:14]} h5 {[%emt 0:01:16]} 17. c4 {[%emt 0:08:29]} d4 {[%emt 0:09:54]} 18. exd4 {[%emt 0:08:00]} Nxd4 {[%emt 0:00:23]} 19. Bd3 {[%emt 0:00:24]} Kf7 {[%emt 0:03:56]} 20. Nxd4 {[%emt 0:10:36]} Bxd4 {[%emt 0:00:25]} 21. Qe4 {[%emt 0:05:54]} f5 {[%emt 0:01:36]} 22. Qf3 {[%emt 0:00:14]} g6 {[%emt 0:02:21]} 23. Be4 {[%emt 0:05:24]} b6 {[%emt 0:05:40]} 24. Bd5 {[%emt 0:04:20]} Bxd5 {[%emt 0:00:58]} 25. Qxd5+ {[%emt 0:00:25]} Qe6 {[%emt 0:00:26]} 26. Qb7+ {[%emt 0:04:32]} Qe7 {[%emt 0:00:13]} 27. Qd5+ {[%emt 0:00:21]} Qe6 {[%emt 0:00:18]} 28. Qb7+ {[%emt 0:02:12]} Qe7 {[%emt 0:00:07]} 29. Qxe7+ {[%emt 0:00:56]} Kxe7 {[%emt 0:00:07]} 30. b3 {[%emt 0:00:02]} Bc5 {[%emt 0:02:06]} 31. Nf3 {[%emt 0:03:23]} e4 {[%emt 0:02:23]} 32. Ne5 {[%emt 0:00:13]} Kf6 {[%emt 0:02:43]} 33. Rd5 {[%emt 0:02:15]} h4 {[%emt 0:03:00]} 34. gxh4 {[%emt 0:03:43]} Rxh4 {[%emt 0:00:32]} 35. Nd7+ {[%emt 0:00:28]} Ke7 {[%emt 0:02:03]} 36. Nxc5 {[%emt 0:00:27]} Rxc5 {[%emt 0:00:27]} 37. Rxc5 {[%emt 0:00:22]} bxc5 {[%emt 0:00:06]} 38. Rd1 {[%emt 0:00:14]} Rh5 {[%emt 0:01:02]} 39. Rd5 {[%emt 0:00:17]} f4 {[%emt 0:00:08]} 40. Rxh5 {[%emt 0:01:50]} gxh5 {[%emt 0:00:10]} 41. Kf1 {[%emt 0:01:50]} Kd6 {[%emt 0:00:34]} 42. Ke2 {[%emt 0:02:27]} Ke5 {[%emt 0:00:59]} 43. Kd1 {[%emt 0:05:03]} Kd4 {[%emt 0:01:45]} 44. Kd2 {[%emt 0:00:37]} h4 {[%emt 0:00:22]} 45. a3 {[%emt 0:00:19]} f3 {[%emt 0:01:40]} 46. g4 {[%emt 0:01:06]} h3 {[%emt 0:00:15]} 47. g5 {[%emt 0:00:03]} h2 {[%emt 0:00:08]} 48. g6 {[%emt 0:00:04]} h1=Q {[%emt 0:00:07]} 0-1

[Event "GER-chT States Women 2022"]
[Site "Braunfels"]
[Date "2022.06.18"]
[Round "4.30"]
[White "Albayrak, Berrak"]
[Black "Braeutigam, Katerina"]
[Result "1/2-1/2"]
[ECO "B18"]
[WhiteElo "1569"]
[BlackElo "1860"]
[Annotator "NA RC"]
[PlyCount "117"]
[EventDate "2022.06.15"]
[EventType "swiss"]
[EventCountry "GER"]
[SourceTitle "playchess.com"]
[Source "ChessBase"]
[SourceQuality "1"]
[TimeControl "40/5400+30:1800+30"]

1. e4 {[%emt 0:00:03]} c6 {[%emt 0:00:05]} 2. d4 {[%emt 0:00:07]} d5 {[%emt 0:00:05]} 3. Nc3 {[%emt 0:00:05]} dxe4 {[%emt 0:00:08]} 4. Nxe4 {[%emt 0:00:06]} Bf5 {[%emt 0:00:09]} 5. Ng3 {[%emt 0:00:10]} Bg6 {[%emt 0:00:05]} 6. Nf3 {[%emt 0:00:18]} Nd7 {[%emt 0:00:07]} 7. Bd3 {[%emt 0:01:35]} Bxd3 {[%emt 0:01:03]} 8. Qxd3 {[%emt 0:00:16]} e6 {[%emt 0:00:33]} 9. Be3 {[%emt 0:06:05]} Ngf6 {[%emt 0:05:31]} 10. c3 {[%emt 0:12:02]} Be7 {[%emt 0:03:39]} 11. O-O-O {[%emt 0:06:50]} Nd5 {[%emt 0:10:03]} 12. Bd2 {[%emt 0:08:20]} Qb6 {[%emt 0:11:40]} 13. Ne4 {[%emt 0:05:52]} Rc8 {[%emt 0:14:33]} 14. Ne5 {[%emt 0:12:52]} N7f6 {[%emt 0:05:40]} 15. Ng5 {[%emt 0:08:00]} c5 {[%emt 0:17:09] [#]} 16. Kb1 $1 {[%emt 0:09:52]} (16. Nexf7 {[#]} cxd4 $1 17. c4 (17. Nxh8 $2 {too greedy.} dxc3 18. Bxc3 Nxc3 $19) 17... O-O $11) 16... Rf8 {[%emt 0:14:35]} 17. Nxh7 $2 {[%emt 0:07:18]} (17. c4 $18 Nb4 18. Bxb4 Qxb4 19. d5 (19. Nxh7 Nxh7 20. Qxh7 Bf6 $16)) 17... Nxh7 {[%emt 0:01:42]} 18. Qxh7 {[%emt 0:00:08]} cxd4 {[%emt 0:01:11]} 19. c4 {[%emt 0:06:12]} Nc3+ {[%emt 0:04:21]} 20. Bxc3 {[%emt 0:00:23]} dxc3 {[%emt 0:00:03]} 21. Qc2 {[%emt 0:00:52]} Qxb2+ {[%emt 0:00:44]} 22. Qxb2 {[%emt 0:00:05]} cxb2 {[%emt 0:00:02]} 23. Rhe1 {[%emt 0:06:06]} Rh8 {[%emt 0:04:16]} 24. h3 {[%emt 0:04:44]} Bf6 {[%emt 0:01:57]} 25. Rd4 {[%emt 0:03:25]} Rc5 {[%emt 0:02:14]} 26. Rde4 {[%emt 0:00:29]} Rh5 {[%emt 0:01:15]} 27. Nd3 {[%emt 0:00:58]} Rc6 {[%emt 0:00:33]} 28. Nxb2 {[%emt 0:00:35]} Rhc5 {[%emt 0:00:30]} 29. Rc1 {[%emt 0:00:27]} Rb6 {[%emt 0:00:28]} 30. Rc2 {[%emt 0:00:28]} Re5 {[%emt 0:00:32]} 31. Rxe5 {[%emt 0:00:30]} Bxe5 {[%emt 0:00:01]} 32. Kc1 {[%emt 0:00:16]} Bxb2+ {[%emt 0:00:57]} 33. Rxb2 {[%emt 0:00:04]} Rxb2 {[%emt 0:00:27]} 34. Kxb2 {[%emt 0:00:04]} Kd7 {[%emt 0:00:20]} 35. Kc3 {[%emt 0:01:08]} Kd6 {[%emt 0:00:41]} 36. Kb4 {[%emt 0:00:31]} e5 {[%emt 0:00:40]} 37. Kb5 {[%emt 0:01:02]} f5 {[%emt 0:00:26]} 38. g3 {[%emt 0:00:39]} e4 {[%emt 0:00:25]} 39. h4 {[%emt 0:00:24]} Ke5 {[%emt 0:00:33]} 40. Kc5 {[%emt 0:00:37]} f4 {[%emt 0:00:33]} 41. gxf4+ {[%emt 0:00:47]} Kxf4 {[%emt 0:00:10]} 42. Kd4 {[%emt 0:00:08]} g6 {[%emt 0:07:06]} 43. c5 {[%emt 0:03:48]} Kf3 {[%emt 0:01:04]} 44. a4 {[%emt 0:03:11]} Kxf2 {[%emt 0:23:16]} 45. Kxe4 {[%emt 0:00:14]} Kg3 {[%emt 0:00:05]} 46. a5 {[%emt 0:06:13]} a6 $16 {[%emt 0:00:13]} (46... Kxh4 {is a self mate.} 47. a6 b6 48. c6 b5 49. c7 Kg5 50. c8=Q Kf6 51. Qc3+ Kg5 52. Qe5+ Kg4 53. Qf6) 47. Ke5 {[%emt 0:01:02]} Kxh4 {[%emt 0:01:03] [#]} 48. Kd6 $1 {[%emt 0:00:06]} g5 {[%emt 0:00:36]} 49. Kc7 {[%emt 0:00:22]} g4 {[%emt 0:00:13]} 50. Kxb7 {[%emt 0:00:14]} g3 {[%emt 0:00:05]} 51. c6 {[%emt 0:00:24]} g2 {[%emt 0:00:04]} 52. c7 {[%emt 0:00:12]} g1=Q {[%emt 0:00:05]} 53. c8=Q {[%emt 0:00:11]} Qg2+ {[%emt 0:02:28]} 54. Qc6 {[%emt 0:00:39]} Qe2 {[%emt 0:00:32]} 55. Ka7 {[%emt 0:03:45]} Qd3 {[%emt 0:00:30]} 56. Qxa6 {[%emt 0:02:53]} Qd7+ {[%emt 0:00:28]} 57. Qb7 {[%emt 0:01:07]} Qd4+ {[%emt 0:00:11]} 58. Ka6 {[%emt 0:02:03]} Qc4+ {[%emt 0:00:43]} 59. Qb5 {[%emt 0:01:07]} 1/2-1/2